bitfinex-derivatives/quotes_BNBF0:USTF0_20250326
["timestamp","ask_amount","ask_price","bid_price","bid_amount"]
[1742951923677,0.27594519,630.99,630.2,1.18679413]
[1742951925478,0.44,631.0,630.2,1.18679413]
[1742951925679,0.27594847,630.98,630.2,1.18679413]
[1742951926480,0.27594847,630.98,630.18,1.18679413]
[1742951926980,0.31697228,630.97,630.18,1.18679413]
[1742951928479,0.31697228,630.97,630.04,1.18679413]
[1742951930176,0.31697228,630.97,630.02,1.18679413]
[1742951931675,0.27598787,630.96,630.02,1.18679413]
[1742951932080,0.27598787,630.96,630.01,1.18679413]
[1742951934080,0.27598787,630.96,630.02,1.18679413]
[1742951934478,0.31697228,630.97,630.02,1.18679413]
[1742951935785,0.27598568,630.96,630.02,1.18679413]
[1742951936084,0.27598568,630.96,630.03,0.2713076]
[1742951936686,0.27598568,630.96,630.04,1.18679413]
[1742951936879,0.27598568,630.96,630.05,0.2713076]
[1742951937184,0.27598568,630.96,630.06,0.27131549]
[1742951937381,0.27598568,630.96,630.05,0.27131549]
[1742951937686,0.31697228,630.97,630.06,0.27131549]
[1742951937890,0.31697228,630.97,630.07,0.27131549]
[1742951938090,0.31697228,630.97,630.08,0.27131549]
[1742951938290,0.31697228,630.97,630.09,0.27131549]
[1742951938792,0.27598349,630.96,630.09,0.27131549]
[1742951938994,0.27598349,630.96,630.1,1.18679413]
[1742951940393,0.31697228,630.97,630.1,1.18679413]
[1742951940593,0.31697228,630.97,630.11,0.27131549]
[1742951941393,0.707,630.96,630.12,1.18679413]
[1742951941588,0.707,630.96,630.13,0.27131549]
[1742951941794,0.98297692,630.96,630.13,0.27131549]
[1742951943395,0.707,630.96,630.13,0.27131549]
[1742951943796,0.707,630.96,630.15,1.18679413]
[1742951944698,0.27597583,630.95,630.15,1.18679413]
[1742951945094,0.31698735,630.94,630.15,1.18679413]
[1742951947002,0.75698735,630.94,630.1,1.18679413]
[1742951947600,0.27601851,630.93,630.1,1.18679413]
[1742951947801,0.3169974,630.92,630.1,1.18679413]
[1742951949398,0.3169974,630.92,629.79,1.18679413]
[1742951950696,0.27605245,630.91,629.79,1.18679413]
[1742951950899,0.31700744,630.9,629.79,1.18679413]
[1742951952101,0.31700744,630.9,629.75,1.18679413]
[1742951953206,0.31700744,630.9,629.76,0.27154817]
[1742951953705,0.27605683,630.89,629.76,0.27154817]
[1742951953902,0.31701749,630.88,629.75,1.18679413]
[1742951954102,0.31701749,630.88,629.73,0.27605683]
[1742951954103,0.31701749,630.88,629.77,1.18679413]
[1742951954300,0.31701749,630.88,629.78,0.27164769]
[1742951956103,0.31701749,630.88,629.76,1.18679413]
[1742951956304,0.31701749,630.88,629.77,0.27165643]
[1742951956702,0.27605573,630.87,629.77,0.27165643]
[1742951956902,0.31702754,630.86,629.77,0.27165643]
[1742951959511,0.31702754,630.86,629.93,1.18679413]
[1742951959708,0.31702754,630.86,629.94,0.27165643]
[1742951959709,0.27605573,630.85,629.94,0.27165643]
[1742951959903,0.3170376,630.84,629.94,0.27165643]
[1742951961510,0.3170376,630.84,629.92,1.18679413]
[1742951961710,0.3170376,630.84,629.93,0.2716651]
[1742951962809,0.27603822,630.83,629.93,0.2716651]
[1742951963010,0.31704765,630.82,629.93,0.2716651]
[1742951963409,0.31704765,630.82,629.92,1.18679413]
[1742951964510,0.31704765,630.82,629.89,1.18679413]
[1742951964710,0.27605026,630.81,629.9,0.27166532]
[1742951964910,0.59310293,630.81,629.89,1.18679413]
[1742951965210,0.59310293,630.81,629.9,0.27166427]
[1742951966409,0.59310293,630.81,629.89,1.18679413]
[1742951966607,0.59310293,630.81,629.9,0.27167439]
[1742951967009,0.59310293,630.81,629.86,1.18679413]
[1742951967414,0.31705267,630.81,629.87,0.27168973]
[1742951967814,0.27605902,630.8,629.87,0.27168973]
[1742951968016,0.27605902,630.8,629.86,1.18679413]
[1742951968215,0.27605902,630.8,629.87,0.27169898]
[1742951969009,0.846,630.79,629.87,1.45849311]
[1742951969212,0.846,630.79,629.88,0.27169898]
[1742951969716,0.846,630.79,629.87,1.18679413]
[1742951969915,0.44,630.78,629.87,1.18679413]
[1742951971415,0.44,630.78,629.82,1.18679413]
[1742951971810,0.27603384,630.77,629.82,1.18679413]
[1742951973112,0.27603384,630.77,629.83,1.18679413]
[1742951973516,0.44,630.78,629.83,1.18679413]
[1742951973918,0.27603931,630.76,629.83,1.18679413]
[1742951976517,0.44,630.78,629.84,0.27151371]
[1742951976717,0.44,630.78,629.82,1.18679413]
[1742951976920,0.44,630.78,629.83,0.27150765]
[1742951978419,0.44,630.78,629.92,1.18679413]
[1742951978621,0.44,630.78,629.93,0.27150765]
[1742951979317,0.44,630.78,629.94,0.27151371]
[1742951979522,0.44,630.78,629.92,1.18679413]
[1742951979523,0.44,630.78,629.93,0.27151371]
[1742951979715,0.44,630.78,629.94,0.27151371]
[1742951979915,0.44,630.78,629.95,0.27151371]
[1742951980120,0.44,630.78,629.93,0.27151371]
[1742951980317,0.44,630.78,629.94,0.27151371]
[1742951980517,0.44,630.78,629.93,0.27151371]
[1742951980717,0.44,630.78,629.94,0.27151371]
[1742951980918,0.44,630.78,629.85,0.27601304]
[1742951980919,0.44,630.78,629.97,1.18679413]
[1742951981218,0.44,630.78,629.98,0.27151371]
[1742951982224,0.44,630.78,629.97,1.18679413]
[1742951982420,0.44,630.78,629.98,0.27149623]
[1742951983519,0.44,630.78,629.98,1.45829036]
[1742951983723,0.44,630.78,629.99,0.27149623]
[1742951986118,0.44,630.78,629.97,0.27149623]
[1742951986319,0.44,630.78,629.98,0.27149623]
[1742951986525,0.44,630.78,629.97,0.27149623]
[1742951986720,0.44,630.78,629.98,0.27149623]
[1742951986919,0.44,630.78,629.96,1.18679413]
[1742951987126,0.846,630.79,629.97,0.27151209]
[1742951988326,0.846,630.79,630.01,1.18679413]
[1742951988526,0.846,630.79,630.02,0.27151209]
[1742951988727,0.846,630.79,630.01,1.18679413]
[1742951988926,0.846,630.79,630.02,0.27151087]
[1742951989925,0.44,630.78,630.02,0.27151087]
[1742951990124,0.44,630.78,630.03,1.18679413]
[1742951990526,0.44,630.78,630.04,0.27151432]
[1742951993328,0.44,630.78,630.03,0.27151432]
[1742951993528,0.44,630.78,630.04,0.27151432]
[1742951993828,0.44,630.78,630.05,0.27151432]
[1742951994027,0.44,630.78,630.06,0.27151432]
[1742951994226,0.44,630.78,630.02,1.18679413]
[1742951994621,0.44,630.78,630.06,1.18679413]
[1742951997826,0.44,630.78,629.83,1.18679413]
[1742951998021,0.44,630.78,629.84,0.27136056]
[1742951999028,0.44,630.78,629.85,0.27599443]
[1742951999330,0.44,630.78,629.86,0.27136056]
[1742952000423,0.44,630.78,630.02,1.18679413]
[1742952001424,0.44,630.78,630.03,0.27136676]
[1742952002027,0.851,630.77,630.03,0.27136676]
[1742952003326,0.851,630.77,630.05,1.18679413]
[1742952003524,0.851,630.77,630.06,0.27136676]
[1742952005729,0.851,630.77,630.05,0.27136676]
[1742952005928,0.851,630.77,630.06,0.27136676]
[1742952006125,0.851,630.77,630.07,0.27136676]
[1742952006327,0.851,630.77,630.05,0.27136676]
[1742952006632,0.851,630.77,630.06,0.27136676]
[1742952006833,0.851,630.77,630.04,1.18679413]
[1742952006834,0.851,630.77,630.07,0.27136676]
[1742952007027,0.851,630.77,630.08,0.27136676]
[1742952007225,0.851,630.77,630.09,0.27136676]
[1742952007430,0.851,630.77,630.05,0.27136676]
[1742952007626,0.851,630.77,630.06,0.27136676]
[1742952007827,0.851,630.77,630.04,1.18679413]
[1742952008133,0.851,630.77,630.05,0.27127939]
[1742952008435,0.851,630.77,630.1,1.18679413]
[1742952008634,0.851,630.77,630.11,0.27127939]
[1742952010434,0.851,630.77,630.19,1.18679413]
[1742952010730,0.851,630.77,630.2,0.27127939]
[1742952010932,0.851,630.77,630.19,1.18679413]
[1742952011133,0.851,630.77,630.2,0.27132253]
[1742952012433,0.851,630.77,630.2,1.45811666]
[1742952012736,0.851,630.77,630.21,0.27132253]
[1742952014036,0.27593206,631.04,630.21,0.27132253]
[1742952014431,0.44,631.03,630.21,0.27132253]
[1742952016539,0.44,631.03,630.2,1.18679413]
[1742952016743,0.44,631.03,630.21,0.27120385]
[1742952016946,0.44,631.03,630.29,1.18679413]
[1742952017552,0.687,631.02,630.29,1.18679413]
[1742952019254,0.687,631.02,622.91,5.66526805]
[1742952019255,0.687,631.02,630.21,1.18679413]
[1742952019452,0.687,631.02,630.22,0.2711854]
[1742952020352,0.687,631.02,630.23,0.27119051]
[1742952020652,0.687,631.02,630.24,0.27119051]
[1742952020846,0.687,631.02,630.22,0.27119051]
[1742952021045,0.687,631.02,630.23,0.27119051]
[1742952021247,0.687,631.02,630.24,0.27119051]
[1742952021552,0.687,631.02,630.25,0.27119051]
[1742952021853,0.687,631.02,630.26,0.27119051]
[1742952022045,0.687,631.02,630.19,0.27119051]
[1742952022247,0.687,631.02,630.2,0.27119051]
[1742952022446,0.687,631.02,630.19,0.27119051]
[1742952022647,0.687,631.02,630.2,0.27119051]
[1742952022853,0.687,631.02,630.21,0.27119051]
[1742952023047,0.687,631.02,630.19,0.27119051]
[1742952023353,0.687,631.02,630.2,0.27119051]
[1742952023648,0.687,631.02,630.21,0.27119051]
[1742952023853,0.687,631.02,630.22,0.27119051]
[1742952024053,0.687,631.02,630.19,0.27119051]
[1742952024253,0.687,631.02,630.17,0.27588613]
[1742952024254,0.687,631.02,630.2,1.45798464]
[1742952024454,0.687,631.02,630.21,0.27119051]
[1742952024957,0.687,631.02,630.2,1.18679413]
[1742952025256,0.687,631.02,630.21,0.27116087]
[1742952026651,0.687,631.02,630.22,0.2711061]
[1742952026853,0.687,631.02,630.21,0.2711061]
[1742952027053,0.687,631.02,630.22,0.2711061]
[1742952027249,0.687,631.02,630.23,0.2711061]
[1742952027451,0.687,631.02,630.24,0.2711061]
[1742952027654,0.687,631.02,630.21,0.2711061]
[1742952027855,0.687,631.02,630.22,0.2711061]
[1742952028054,0.687,631.02,630.21,0.2711061]
[1742952028250,0.687,631.02,630.22,0.27109786]
[1742952028556,0.687,631.02,630.23,0.27109786]
[1742952028758,0.687,631.02,630.21,0.27109786]
[1742952028949,0.687,631.02,630.22,0.27109786]
[1742952029151,0.687,631.02,630.21,0.27109786]
[1742952029354,0.687,631.02,630.22,0.27109786]
[1742952029554,0.687,631.02,630.21,0.27109786]
[1742952029757,0.687,631.02,630.22,0.27109786]
[1742952029956,0.687,631.02,630.23,0.27109786]
[1742952030253,0.687,631.02,630.24,0.27109786]
[1742952030454,0.687,631.02,630.21,0.27109786]
[1742952030655,0.687,631.02,630.22,0.27109786]
[1742952030856,0.687,631.02,630.23,0.27109786]
[1742952033761,0.687,631.02,630.21,1.18679413]
[1742952033762,0.687,631.02,630.24,0.27109786]
[1742952033962,0.687,631.02,630.25,0.27109786]
[1742952034162,0.687,631.02,630.22,0.27109786]
[1742952034464,0.687,631.02,630.23,0.27109786]
[1742952034661,0.687,631.02,630.24,0.27109786]
[1742952034862,0.687,631.02,630.25,0.27109786]
[1742952035163,0.687,631.02,630.26,0.27109786]
[1742952035462,0.687,631.02,630.27,0.27109786]
[1742952035662,0.687,631.02,630.23,0.27109786]
[1742952035864,0.687,631.02,630.24,0.27109786]
[1742952036062,0.687,631.02,630.23,0.27109786]
[1742952036258,0.687,631.02,630.24,0.27109786]
[1742952036463,0.687,631.02,630.25,0.27109786]
[1742952036756,0.687,631.02,630.26,0.27109786]
[1742952036961,0.687,631.02,630.21,0.27109786]
[1742952037163,0.687,631.02,630.22,0.27109786]
[1742952037363,0.687,631.02,630.23,0.27109786]
[1742952037557,0.687,631.02,630.21,0.27109786]
[1742952037761,0.687,631.02,630.22,0.27586316]
[1742952038064,0.687,631.02,630.23,0.27109786]
[1742952038261,0.687,631.02,630.35,1.18679413]
[1742952038458,0.687,631.02,630.36,0.27109786]
[1742952038763,0.44,631.03,630.36,0.27109786]
[1742952039865,0.44,631.03,630.35,1.18679413]
[1742952040366,0.44,631.03,630.38,1.18679413]
[1742952042464,0.844,631.02,630.38,1.18679413]
[1742952042664,0.844,631.02,630.15,1.18679413]
[1742952042866,0.844,631.02,630.16,0.27115227]
[1742952043767,0.844,631.02,630.17,0.27586863]
[1742952043967,0.844,631.02,630.18,0.27115227]
[1742952044169,0.844,631.02,630.17,0.27586863]
[1742952044370,0.844,631.02,630.18,0.27107975]
[1742952044772,0.844,631.02,630.19,1.18679413]
[1742952045064,0.844,631.02,630.2,0.58843931]
[1742952045266,0.844,631.02,630.21,0.31735453]
[1742952045467,0.844,631.02,630.22,0.27107847]
[1742952045665,0.844,631.02,630.23,0.31734446]
[1742952045868,0.844,631.02,630.24,0.27107847]
[1742952046068,0.844,631.02,630.25,0.31733439]
[1742952046264,0.844,631.02,630.26,0.27107847]
[1742952046470,0.44,631.01,630.27,0.31732432]
[1742952046664,0.44,631.01,630.28,0.27107847]
[1742952046869,0.44,631.01,630.29,0.31731425]
[1742952047067,0.44,631.01,630.3,0.27107847]
[1742952047266,0.44,631.01,630.33,1.18679413]
[1742952047470,0.44,631.01,630.34,0.58836755]
[1742952047671,0.44,631.01,630.35,0.58836251]
[1742952047975,0.44,631.01,630.36,0.58835748]
[1742952048174,0.44,631.01,630.37,0.58835245]
[1742952048475,0.44,631.01,630.38,0.27107847]
[1742952049375,0.44,631.01,630.64,1.18679413]
[1742952051978,0.44,631.01,630.39,1.18679413]
[1742952052177,0.44,631.01,630.4,0.58810447]
[1742952052474,0.44,631.01,630.41,0.27084559]
[1742952053676,0.44,631.01,630.44,1.18679413]
[1742952053880,0.44,631.01,630.45,0.27084559]
[1742952054275,0.44,631.01,630.44,1.18679413]
[1742952055780,0.44,631.01,630.45,0.27102891]
[1742952056281,0.44,631.01,630.44,1.18679413]
[1742952056478,0.44,631.01,630.45,0.27101205]
[1742952056675,0.44,631.01,630.41,0.27101205]
[1742952058175,0.44,631.01,630.42,1.18679413]
[1742952058381,0.44,631.01,630.43,0.27101205]
[1742952060476,0.44,631.01,630.57,1.18679413]
[1742952060682,0.44,631.01,630.58,0.27101205]
[1742952060985,0.44,631.01,630.59,0.27069014]
[1742952061284,0.44,631.01,630.57,1.18679413]
[1742952061285,0.44,631.01,630.6,0.27069014]
[1742952061482,0.44,631.01,630.57,1.18679413]
[1742952061682,0.44,631.01,630.58,0.27063172]
[1742952062380,0.44,631.01,630.59,0.27068543]
[1742952062682,0.44,631.01,630.6,0.27068543]
[1742952062883,0.44,631.01,630.81,1.18679413]
[1742952063084,0.44,631.01,630.82,0.27068543]
[1742952063982,0.44,631.01,630.81,1.18679413]
[1742952063983,0.44,631.01,630.83,0.27065453]
[1742952064182,0.44,631.01,630.81,1.18679413]
[1742952067284,0.44,631.01,630.66,1.18679413]
[1742952067588,0.44,631.01,630.67,0.27073533]
[1742952068183,0.44,631.01,630.68,0.2706987]
[1742952068384,0.44,631.01,630.69,0.2706987]
[1742952068583,0.44,631.01,630.67,0.2706987]
[1742952070582,0.44,631.01,630.68,0.2706987]
[1742952070787,0.44,631.01,630.69,0.2706987]
[1742952070988,0.44,631.01,630.64,0.2706987]
[1742952071187,0.44,631.01,630.65,0.2706987]
[1742952071385,0.44,631.01,630.64,0.2706987]
[1742952071587,0.44,631.01,630.65,0.2706987]
[1742952071786,0.44,631.01,630.63,0.27572765]
[1742952071787,0.44,631.01,630.64,0.2706987]
[1742952071984,0.44,631.01,630.65,0.2706987]
[1742952072185,0.44,631.01,630.64,0.2706987]
[1742952072486,0.44,631.01,630.44,0.31723875]
[1742952072487,0.44,631.01,630.65,0.2706987]
[1742952072687,0.44,631.01,630.66,0.2706987]
[1742952072887,0.44,631.01,630.67,0.2706987]
[1742952073087,0.44,631.01,630.64,0.2706987]
[1742952073289,0.44,631.01,630.65,0.27071608]
[1742952073488,0.44,631.01,630.64,0.27071608]
[1742952073689,0.44,631.01,630.65,0.27071608]
[1742952073891,0.44,631.01,630.66,0.27071608]
[1742952074190,0.44,631.01,630.67,0.27071608]
[1742952074385,0.44,631.01,630.64,0.27071608]
[1742952075485,0.787,631.0,630.64,0.27071608]
[1742952075685,0.787,631.0,630.65,0.27071608]
[1742952075891,0.787,631.0,630.66,0.27071608]
[1742952076190,0.787,631.0,630.67,0.27071608]
[1742952076491,0.787,631.0,630.68,0.27071608]
[1742952076692,0.787,631.0,630.64,0.27071608]
[1742952077891,0.787,631.0,630.63,0.27574294]
[1742952078191,0.787,631.0,630.64,0.270749]
[1742952078587,0.787,631.0,630.62,0.270749]
[1742952078791,0.787,631.0,630.63,0.270749]
[1742952078987,0.787,631.0,630.64,0.270749]
[1742952079395,0.787,631.0,630.66,1.18679413]
[1742952079693,0.44,630.99,630.67,0.270749]
[1742952080895,0.44,630.99,630.68,1.18679413]
[1742952081196,0.44,630.99,630.69,0.270749]
[1742952083001,0.44,630.99,630.73,1.18679413]
[1742952083200,0.44,630.99,630.74,0.270749]
[1742952084905,0.44,630.99,630.76,1.18679413]
[1742952085098,0.44,630.99,630.77,0.270749]
[1742952085298,0.44,630.99,630.76,1.18679413]
[1742952089214,0.44,630.99,630.64,1.18679413]
[1742952091118,0.44,630.99,630.66,1.18679413]
[1742952093022,0.799,630.98,630.71,1.18679413]
[1742952094523,0.799,630.98,630.75,1.18679413]
[1742952097024,0.799,630.98,630.44,0.31723875]
[1742952101821,0.799,630.98,630.45,0.27120273]
[1742952106423,0.799,630.98,630.44,0.31723875]
[1742952106626,0.799,630.98,630.45,0.2711458]
[1742952106825,0.44,630.97,630.45,0.2711458]
[1742952110532,0.44,630.97,630.46,1.18679413]
[1742952110727,0.44,630.97,630.47,0.2711458]
[1742952111134,0.44,630.97,630.46,1.18679413]
[1742952111432,0.44,630.97,630.47,0.27119922]
[1742952113239,0.44,630.97,630.48,0.27119922]
[1742952113432,0.44,630.97,630.49,0.27119922]
[1742952113632,0.44,630.97,630.5,0.27119922]
[1742952113833,0.44,630.97,630.51,0.27119922]
[1742952114035,0.44,630.97,630.44,0.31723875]
[1742952114237,0.44,630.97,630.45,0.27127148]
[1742952119446,0.44,630.97,630.44,0.31723875]
[1742952119646,0.44,630.97,630.45,0.27121441]
[1742952120946,0.828,630.96,630.44,0.31723875]
[1742952126955,0.44,630.95,630.44,0.31723875]
[1742952131972,0.44,630.95,630.55,1.18679413]
[1742952134072,0.44,630.95,630.56,1.18679413]
[1742952137371,0.44,630.95,630.44,0.31723875]
[1742952137372,0.44,630.95,630.54,1.18679413]
[1742952138771,0.44,630.95,630.55,1.18679413]
[1742952140873,0.44,630.95,630.56,1.18679413]
[1742952143275,0.44,630.95,630.58,1.18679413]
[1742952145584,1.162,630.95,630.58,1.18679413]
[1742952146179,1.162,630.95,630.59,0.27108915]
[1742952148283,1.162,630.95,630.73,1.18679413]
[1742952153290,1.162,630.95,630.65,1.18679413]
[1742952156794,1.162,630.95,630.59,1.18679413]
[1742952156989,0.722,630.95,630.59,1.18679413]
[1742952158495,0.722,630.95,630.54,1.18679413]
[1742952160598,0.722,630.95,630.55,1.18679413]
[1742952160899,0.722,630.95,630.56,0.27107624]
[1742952161105,1.162,630.95,630.56,0.27107624]
[1742952162008,1.162,630.95,630.55,1.18679413]
[1742952162303,1.162,630.95,630.56,0.27107787]
[1742952163298,1.162,630.95,630.68,1.18679413]
[1742952165406,1.162,630.95,630.71,1.18679413]
[1742952167607,1.162,630.95,630.79,1.18679413]
[1742952167608,0.44,630.95,630.79,1.18679413]
[1742952171206,0.44,630.95,630.71,1.18679413]
[1742952172809,0.44,630.95,630.66,1.18679413]
[1742952177818,0.44,630.95,630.67,0.27101675]
[1742952178214,0.716,631.1,630.67,0.27101675]
[1742952179315,0.716,631.1,630.66,1.18679413]
[1742952179516,0.716,631.1,630.8,1.18679413]
[1742952181312,2.42101364,632.24,630.8,1.18679413]
[1742952181513,0.31634557,632.22,630.8,1.18679413]
[1742952181814,0.29104512,632.21,630.8,1.18679413]
[1742952182012,0.31636058,632.19,630.8,1.18679413]
[1742952182215,0.29104512,632.18,630.8,1.18679413]
[1742952182419,0.29104512,632.17,630.83,1.18679413]
[1742952182720,0.60742475,632.16,630.83,1.18679413]
[1742952182920,0.31638561,632.14,630.83,1.18679413]
[1742952183122,0.29104915,632.13,630.83,1.18679413]
[1742952183315,0.31640062,632.11,630.83,1.18679413]
[1742952183515,0.29104915,632.1,630.83,1.18679413]
[1742952183717,0.31641564,632.08,630.83,1.18679413]
[1742952183921,0.29104915,632.07,630.83,1.18679413]
[1742952184116,0.31643066,632.05,630.83,1.18679413]
[1742952184326,0.29104915,632.04,630.83,1.18679413]
[1742952184522,0.31644568,632.02,630.83,1.18679413]
[1742952184719,0.29104915,632.01,630.85,1.18679413]
[1742952184922,0.3164607,631.99,630.85,1.18679413]
[1742952185217,0.29104915,631.98,630.85,1.18679413]
[1742952185423,0.31647572,631.96,630.85,1.18679413]
[1742952185723,0.29104915,631.95,630.85,1.18679413]
[1742952185920,0.31649075,631.93,630.85,1.18679413]
[1742952186117,0.29104915,631.92,630.85,1.18679413]
[1742952186422,0.31650577,631.9,630.85,1.18679413]
[1742952186624,0.29104915,631.89,630.88,1.18679413]
[1742952186919,0.3165208,631.87,630.88,1.18679413]
[1742952187123,0.29104915,631.86,630.88,1.18679413]
[1742952187323,0.31653583,631.84,630.88,1.18679413]
[1742952187521,0.29104915,631.83,630.88,1.18679413]
[1742952187722,0.31653583,631.84,630.88,1.18679413]
[1742952187723,0.31655086,631.81,630.88,1.18679413]
[1742952189620,0.31655086,631.81,630.5,1.18679413]
[1742952189820,0.27566103,631.8,630.5,1.18679413]
[1742952190021,0.31656589,631.78,630.5,1.18679413]
[1742952190630,0.29111863,631.77,630.5,1.18679413]
[1742952190832,0.31658092,631.75,630.5,1.18679413]
[1742952192128,0.31658092,631.75,630.43,1.18679413]
[1742952194029,0.27572328,631.74,630.35,1.18679413]
[1742952194230,0.31659596,631.72,630.35,1.18679413]
[1742952195130,0.29112433,631.71,630.35,1.18679413]
[1742952195431,0.31661099,631.69,630.45,0.2712002]
[1742952195631,0.29112433,631.68,630.45,0.2712002]
[1742952195831,0.31662603,631.66,630.45,0.2712002]
[1742952196030,0.29112433,631.65,630.45,0.2712002]
[1742952196331,0.31664107,631.63,630.46,0.27120102]
[1742952196525,0.2911107,631.62,630.47,0.27120102]
[1742952196725,0.31665109,631.61,630.48,0.27120102]
[1742952197031,0.2911107,631.6,630.49,0.27120102]
[1742952197229,0.31666112,631.59,630.5,0.27120102]
[1742952197424,0.31666112,631.59,630.45,0.27120102]
[1742952197625,0.31666112,631.59,630.46,0.27120102]
[1742952197824,0.31666112,631.59,630.45,0.27120102]
[1742952198725,0.31666112,631.59,630.49,1.18679413]
[1742952198926,0.31666112,631.59,630.5,0.27120102]
[1742952199629,0.29111601,631.58,630.5,0.27120102]
[1742952199833,0.31667115,631.57,630.5,0.27120102]
[1742952200231,0.2911171,631.56,630.5,0.27120102]
[1742952200434,0.31668118,631.55,630.5,0.27120102]
[1742952200635,0.31668118,631.55,630.47,1.18679413]
[1742952201832,0.27576151,631.54,630.47,1.18679413]
[1742952202137,0.27576151,631.54,630.33,0.27576151]
[1742952202138,0.31669121,631.53,630.33,0.27576151]
[1742952204637,0.31669121,631.53,630.23,1.18679413]
[1742952205036,0.27579211,631.52,630.23,1.18679413]
[1742952205237,0.31670123,631.51,630.23,1.18679413]
[1742952205836,0.31670123,631.51,630.31,0.27580522]
[1742952207435,0.31670123,631.51,630.23,1.18679413]
[1742952207830,0.27579648,631.5,630.31,0.27579648]
[1742952208134,0.31671127,631.49,630.31,0.27579648]
[1742952210537,0.31671127,631.49,630.22,1.18679413]
[1742952210933,0.85079867,631.48,630.31,0.27579867]
[1742952211131,0.3167213,631.47,630.31,0.27579867]
[1742952212238,0.3167213,631.47,630.45,0.27113971]
[1742952213438,0.3167213,631.47,630.33,1.18679413]
[1742952213839,0.27578665,631.46,630.33,1.18679413]
[1742952214043,0.31673133,631.45,630.33,1.18679413]
[1742952214539,0.31673133,631.45,630.42,1.18679413]
[1742952215942,0.75673133,631.45,630.42,1.18679413]
[1742952216736,0.27581397,631.44,630.42,1.18679413]
[1742952217041,0.31674136,631.43,630.42,1.18679413]
[1742952217646,0.31674136,631.43,630.32,1.18679413]
[1742952220041,0.27582599,631.42,630.32,1.18679413]
[1742952220245,0.31675139,631.41,630.27,1.18679413]
[1742952220442,0.31675139,631.41,630.28,0.27127204]
[1742952222144,0.31675139,631.41,630.29,1.18679413]
[1742952222751,0.27583146,631.4,630.29,1.18679413]
[1742952222948,0.31676143,631.39,630.29,1.18679413]
[1742952223350,0.31676143,631.39,630.3,0.27132495]
[1742952223544,0.31676143,631.39,630.31,0.27132529]
[1742952223749,0.31676143,631.39,630.32,0.27132529]
[1742952223949,0.31676143,631.39,630.33,0.27132529]
[1742952224150,0.31676143,631.39,630.34,0.27132529]
[1742952224353,0.31676143,631.39,630.35,0.27132529]
[1742952224646,0.31676143,631.39,630.31,1.18679413]
[1742952224847,0.31676143,631.39,630.32,0.27132951]
[1742952225256,0.31676143,631.39,630.33,0.2712704]
[1742952225456,0.31676143,631.39,630.31,1.18679413]
[1742952225853,0.31676143,631.39,630.32,0.27121048]
[1742952226760,0.31676143,631.39,630.46,1.18679413]
[1742952228758,0.27578227,631.38,630.46,1.18679413]
[1742952229367,0.27578227,631.38,630.38,1.18679413]
[1742952231262,0.27578227,631.38,630.27,0.27578227]
[1742952231263,0.27578227,631.38,630.36,1.18679413]
[1742952231462,0.31676143,631.39,630.36,1.18679413]
[1742952231863,0.2757943,631.37,630.36,1.18679413]
[1742952232665,0.2757943,631.37,630.3,1.46258843]
[1742952234568,0.31676143,631.39,630.3,1.18679413]
[1742952234964,0.27580304,631.36,630.3,1.46259717]
[1742952235463,0.27580304,631.36,630.31,1.18679413]
[1742952236470,0.762,631.35,630.31,1.18679413]
[1742952237974,0.762,631.35,630.32,1.18679413]
[1742952237975,0.27580632,631.34,630.32,1.18679413]
[1742952240672,0.762,631.35,630.32,1.18679413]
[1742952241772,0.2758096,631.34,630.32,1.18679413]
[1742952242877,0.2758096,631.34,630.31,1.46260373]
[1742952243476,0.762,631.35,630.31,1.18679413]
[1742952243872,0.27581069,631.33,630.31,1.46260482]
[1742952246479,0.762,631.35,630.31,1.18679413]
[1742952246777,0.27582381,631.32,630.31,1.18679413]
[1742952247578,0.71582381,631.32,630.31,1.18679413]
[1742952248375,0.71582381,631.32,630.35,1.18679413]
[1742952249477,0.44,631.32,630.35,1.18679413]
[1742952249878,0.27582271,631.31,630.35,1.18679413]
[1742952250579,0.27582271,631.31,630.36,1.18679413]